bitfinex/quotes_BTCUSD_20241123
["timestamp","ask_amount","ask_price","bid_price","bid_amount"]
[1732335874069,0.3278,98266.0,98265.0,0.0008596]
[1732335874300,0.3258,98266.0,98265.0,0.0008596]
[1732335874535,0.3278,98266.0,98265.0,0.0008596]
[1732335876688,0.3004,98252.0,98251.0,0.040551]
[1732335877886,0.3238,98248.0,98247.0,0.0008597]
[1732335878584,0.3258,98248.0,98247.0,0.0008597]
[1732335879053,0.3258,98248.0,98206.0,0.0486]
[1732335879054,0.0766,98232.0,98179.0,0.42864747]
[1732335879263,0.0766,98232.0,98178.0,0.002]
[1732335879264,0.04834831,98231.0,98180.0,0.01884322]
[1732335879489,0.04834831,98231.0,98206.0,0.0009805]
[1732335879711,0.04834831,98231.0,98180.0,0.05940322]
[1732335879712,0.04834831,98231.0,98182.0,0.023]
[1732335879929,0.04834831,98231.0,98183.0,0.00101831]
[1732335880143,0.04834831,98231.0,98184.0,0.023]
[1732335880363,0.04834831,98231.0,98185.0,0.00101831]
[1732335880586,0.04834831,98231.0,98185.0,0.01986153]
[1732335880799,0.00114831,98231.0,98186.0,0.023]
[1732335881017,0.00114831,98231.0,98190.0,0.023]
[1732335881446,0.00114831,98231.0,98192.0,0.023]
[1732335882104,0.00114831,98231.0,98194.0,0.023]
[1732335887522,0.00114831,98231.0,98195.0,0.03231244]
[1732335887762,0.00114831,98231.0,98196.0,0.023]
[1732335888214,0.00114831,98231.0,98193.0,0.1309907]
[1732335889951,0.00114831,98231.0,98194.0,0.13]
[1732335890207,0.00114831,98231.0,98199.0,0.13]
[1732335890426,0.00114831,98231.0,98200.0,0.02401813]
[1732335892471,0.00286931,98231.0,98200.0,0.02401813]
[1732335892928,0.00286931,98231.0,98201.0,0.0486]
[1732335893417,0.00286931,98231.0,98202.0,0.02401813]
[1732335895182,0.00286931,98231.0,98203.0,0.13]
[1732335895401,0.00286931,98231.0,98220.0,0.023]
[1732335895402,0.001721,98231.0,98220.0,0.023]
[1732335895624,0.001721,98231.0,98219.0,0.13]
[1732335895625,0.001721,98231.0,98222.0,0.023]
[1732335895866,0.001721,98231.0,98223.0,0.00101792]
[1732335896100,0.001721,98231.0,98225.0,0.1044]
[1732335896341,0.001721,98231.0,98226.0,0.00101781]
[1732335896592,0.001721,98231.0,98227.0,0.00101781]
[1732335896826,0.001721,98231.0,98225.0,0.1044]
[1732335896827,0.001721,98231.0,98226.0,0.00101781]
[1732335898015,0.001721,98231.0,98227.0,0.023]
[1732335898265,0.001721,98231.0,98228.0,0.00101781]
[1732335898506,0.001721,98231.0,98228.0,0.00301781]
[1732335898735,0.001721,98231.0,98230.0,0.002]
[1732335898970,0.001721,98231.0,98230.0,0.05171779]
[1732335899432,0.001721,98231.0,98230.0,0.04971779]
[1732335899929,0.001721,98231.0,98230.0,0.07271779]
[1732335900158,0.001721,98231.0,98230.0,0.0717]
[1732335901536,0.001721,98231.0,98230.0,0.47267396]
[1732335901753,0.001721,98231.0,98230.0,0.0717]
[1732335905451,0.001721,98231.0,98230.0,0.07271785]
[1732335905689,0.001721,98231.0,98230.0,0.00101785]
[1732335907714,0.001721,98231.0,98230.0,0.02401785]
[1732335907976,0.001721,98231.0,98230.0,0.023]
[1732335908638,0.001721,98231.0,98226.0,0.04180747]
[1732335908859,0.001721,98231.0,98227.0,0.023]
[1732335909087,0.001721,98231.0,98217.0,0.5]
[1732335909088,0.001721,98231.0,98228.0,0.00101785]
[1732335909350,0.001721,98231.0,98230.0,0.023]
[1732335909586,0.001721,98231.0,98230.0,0.02401785]
[1732335910028,0.001721,98231.0,98230.0,0.023]
[1732335910960,0.001721,98231.0,98222.0,0.01506546]
[1732335911612,0.001721,98231.0,98228.0,0.30615874]
[1732335912031,0.001721,98231.0,98227.0,0.30615874]
[1732335912247,0.001721,98231.0,98228.0,0.32915874]
[1732335912521,0.001721,98231.0,98230.0,0.32915874]
[1732335912738,0.001721,98231.0,98230.0,0.32916176]
[1732335914136,0.001721,98231.0,98230.0,0.32916655]
[1732335914339,0.001721,98231.0,98230.0,0.32916718]
[1732335915445,0.001721,98231.0,98230.0,0.023]
[1732335915699,0.001721,98231.0,98229.0,0.023]
[1732335915921,0.001721,98231.0,98230.0,0.00101792]
[1732335917506,0.001721,98231.0,98229.0,0.06396765]
[1732335919649,0.001721,98231.0,98230.0,0.3291424]
[1732335924326,0.001721,98231.0,98230.0,0.023]
[1732335925023,0.001721,98231.0,98230.0,0.01091758]
[1732335927322,0.001721,98231.0,98230.0,0.03391758]
[1732335927561,0.001721,98231.0,98230.0,0.07411314]
[1732335928004,0.001721,98231.0,98230.0,0.03391758]
[1732335928716,0.001721,98231.0,98230.0,0.07571356]
[1732335928931,0.001721,98231.0,98230.0,0.03391758]
[1732335932443,0.084421,98231.0,98230.0,0.023]
[1732335937292,0.001721,98231.0,98230.0,0.023]
[1732335937740,0.001721,98231.0,98230.0,0.05831929]
[1732335939085,0.001721,98231.0,98230.0,0.06031929]
[1732335940105,0.001721,98231.0,98230.0,0.59768247]
[1732335940335,0.001721,98231.0,98230.0,0.56031929]
[1732335941268,0.001721,98231.0,98230.0,0.06031929]
[1732335941598,0.001721,98231.0,98230.0,0.59732103]
[1732335941829,0.001721,98231.0,98230.0,0.59532103]
[1732335942047,0.001721,98231.0,98230.0,0.59732103]
[1732335942294,0.001721,98231.0,98230.0,0.06031929]
[1732335943901,0.001721,98231.0,98230.0,0.59732103]
[1732335944122,0.001721,98231.0,98230.0,0.72812103]
[1732335944327,0.001721,98231.0,98230.0,0.19111929]
[1732335945489,0.001721,98231.0,98230.0,0.69111929]
[1732335945935,0.001721,98231.0,98230.0,0.68911929]
[1732335946162,0.001721,98231.0,98230.0,0.69111929]
[1732335946397,0.0788,98255.0,98230.0,0.6538]
[1732335946609,0.0788,98255.0,98246.0,0.49199426]
[1732335946836,0.0788,98255.0,98247.0,0.49199426]
[1732335947128,0.0788,98255.0,98248.0,0.023]
[1732335947361,0.0788,98255.0,98246.0,0.49199426]
[1732335947579,0.0788,98255.0,98247.0,0.023]
[1732335947807,0.0788,98263.0,98247.0,0.51499426]
[1732335948263,0.0788,98263.0,98249.0,0.023]
[1732335949099,0.0788,98263.0,98249.0,0.51499426]
[1732335949329,0.0788,98263.0,98252.0,0.023]
[1732335949538,0.0017204,98255.0,98252.0,0.023]
[1732335949978,0.0017204,98255.0,98253.0,0.49199426]
[1732335950221,0.0017204,98255.0,98252.0,0.023]
[1732335950627,0.0017204,98255.0,98250.0,0.023]
[1732335951135,0.0017204,98255.0,98254.0,0.49149966]
[1732335951355,0.0017204,98255.0,98254.0,0.023]
[1732335951571,0.0017204,98255.0,98253.0,0.023]
[1732335951802,0.0017204,98255.0,98253.0,0.51449966]
[1732335952009,0.0017204,98255.0,98254.0,0.03632001]
[1732335952217,0.0017204,98255.0,98254.0,0.08502259]
[1732335952433,0.0017204,98255.0,98249.0,0.04177691]
[1732335952434,0.0017204,98255.0,98250.0,0.023]
[1732335953120,0.0017204,98255.0,98254.0,0.002]
[1732335954423,0.0017204,98255.0,98250.0,0.023]
[1732335954891,0.0017204,98255.0,98254.0,0.002]
[1732335955325,0.0017204,98255.0,98254.0,0.025]
[1732335956056,0.0017204,98255.0,98254.0,0.002]
[1732335956283,0.0017204,98255.0,98254.0,0.5493]
[1732335956511,0.0017204,98255.0,98254.0,0.5513]
[1732335957082,0.0017204,98255.0,98254.0,0.5743]
[1732335957900,0.0017204,98255.0,98254.0,0.31978894]
[1732335961121,0.0017204,98255.0,98254.0,0.31778894]
[1732335961351,0.0017204,98255.0,98254.0,0.31978894]
[1732335961975,0.0017204,98255.0,98254.0,0.31778894]
[1732335962194,0.0017204,98255.0,98254.0,0.34334964]
[1732335963265,0.0017204,98255.0,98254.0,0.5485607]
[1732335964802,0.0017204,98255.0,98254.0,0.5465607]
[1732335965027,0.0017204,98255.0,98254.0,0.5485607]
[1732335967629,0.0017204,98255.0,98254.0,0.5465607]
[1732335967834,0.0017204,98255.0,98254.0,0.5485607]
[1732335970454,0.0017204,98255.0,98254.0,0.5465607]
[1732335970693,0.0017204,98255.0,98254.0,0.5485607]
[1732335970923,0.0017204,98255.0,98254.0,0.5465607]
[1732335971140,0.0017204,98255.0,98254.0,0.5485607]
[1732335972002,0.0017204,98255.0,98254.0,0.5494208]
[1732335972213,0.0017204,98255.0,98254.0,0.5474208]
[1732335972684,0.0017204,98255.0,98254.0,0.5494208]
[1732335973333,0.0017204,98255.0,98254.0,0.5474208]
[1732335973777,0.0017204,98255.0,98254.0,0.5494208]
[1732335974050,0.0792204,98255.0,98254.0,0.5244208]
[1732335974275,0.0792204,98255.0,98254.0,0.0244208]
[1732335974756,0.0792204,98255.0,98254.0,0.0008601]
[1732335979926,0.0017204,98255.0,98254.0,0.0008601]
[1732335982836,0.0778204,98255.0,98254.0,0.03802185]
[1732335986397,0.0775507,98255.0,98254.0,0.03802185]
[1732335987544,0.1248507,98255.0,98254.0,0.03802185]
[1732335987793,0.1248507,98255.0,98254.0,0.0008601]
[1732335997275,0.1248507,98255.0,98254.0,0.03569183]
[1732336002812,0.1248507,98255.0,98254.0,0.07285358]
[1732336017868,0.1248507,98255.0,98254.0,0.0008601]
[1732336019918,0.12612316,98255.0,98254.0,0.0008601]
[1732336020631,0.1248507,98255.0,98254.0,0.0008601]
[1732336029707,0.0775507,98255.0,98254.0,0.0008601]
[1732336029925,0.0014507,98255.0,98254.0,0.0008601]
[1732336032892,0.0014507,98255.0,98254.0,0.0337605]
[1732336033121,0.1274507,98255.0,98254.0,0.0337605]
[1732336033383,0.1274507,98255.0,98254.0,0.0046444]
[1732336033798,0.1274507,98255.0,98242.0,0.04035163]
[1732336034020,0.00127231,98254.0,98242.0,0.04035163]
[1732336034270,0.00127231,98254.0,98243.0,0.00463909]
[1732336034484,0.00127231,98254.0,98231.0,0.55475341]
[1732336034717,0.00127231,98254.0,98231.0,0.0238603]
[1732336034918,0.00127231,98254.0,98232.0,0.00464069]
[1732336035132,0.00127231,98254.0,98233.0,0.023]
[1732336035605,0.00127231,98254.0,98234.0,0.00464037]
[1732336042145,0.00127231,98254.0,98235.0,0.03216167]
[1732336042606,0.0761,98251.0,98236.0,0.00464665]
[1732336042810,0.05117249,98250.0,98233.0,0.0008601]
[1732336043063,0.0761,98249.0,98233.0,0.0008601]
[1732336043283,0.0761,98247.0,98234.0,0.00464633]
[1732336043516,0.0761,98245.0,98233.0,0.0008601]
[1732336043731,0.0761,98242.0,98233.0,0.0008601]
[1732336043941,0.00127249,98241.0,98233.0,0.0008601]
[1732336046871,0.126,98240.0,98233.0,0.0008601]
[1732336047098,0.0499,98237.0,98233.0,0.0008601]
[1732336047350,0.0499,98235.0,98233.0,0.0008601]
[1732336047566,0.07737263,98234.0,98233.0,0.0008601]
[1732336047783,0.12727263,98234.0,98233.0,0.0008601]
[1732336051482,0.12727263,98234.0,98231.0,0.0008603]
[1732336051483,0.126,98223.0,98189.0,0.023]
[1732336051734,0.126,98223.0,98188.0,0.1]
[1732336051735,0.07737271,98222.0,98188.0,0.04051031]
[1732336051964,0.07737271,98222.0,98189.0,0.1]
[1732336054520,0.07737271,98222.0,98190.0,0.0402]
[1732336057096,0.0814,98220.0,98187.0,0.04083953]
[1732336057355,0.0814,98218.0,98191.0,0.03334999]
[1732336057589,0.002,98222.0,98191.0,0.03334999]
[1732336057590,0.0486,98211.0,98191.0,0.03334999]
[1732336057826,0.0814,98207.0,98191.0,0.03334999]
[1732336058052,0.0814,98205.0,98191.0,0.03334999]
[1732336058285,0.00127291,98204.0,98191.0,0.03334999]
[1732336058520,0.0486,98203.0,98191.0,0.03334999]
[1732336059917,0.00127291,98202.0,98191.0,0.03334999]
[1732336061029,0.00127291,98202.0,98192.0,0.00478211]
[1732336061709,0.00127291,98202.0,98186.0,0.04059261]
[1732336061904,0.00127291,98202.0,98193.0,0.00478211]
[1732336062116,0.00127291,98202.0,98176.0,0.1]
[1732336062345,0.00127291,98202.0,98183.0,0.00149962]
[1732336062763,0.00127291,98202.0,98184.0,0.0047826]
[1732336063199,0.0486,98203.0,98184.0,0.0047826]
[1732336063416,0.0486,98203.0,98184.0,0.00628222]
[1732336063626,0.00127291,98202.0,98184.0,0.00628222]
[1732336064078,0.00127291,98202.0,98188.0,0.0008607]
[1732336072953,0.002,98197.0,98188.0,0.0008607]
[1732336073178,0.002,98195.0,98188.0,0.0008607]
[1732336073421,0.0012731,98194.0,98188.0,0.0008607]
[1732336074353,0.13,98194.0,98188.0,0.0008607]
[1732336074586,0.0814,98192.0,98188.0,0.0008607]
[1732336074801,0.00127312,98191.0,98188.0,0.0008607]
[1732336075932,0.13,98190.0,98188.0,0.0008607]
[1732336076150,0.00127312,98189.0,98188.0,0.0008607]
[1732336077256,0.00127312,98189.0,98188.0,0.03378102]
[1732336077927,0.00127312,98189.0,98188.0,0.03859289]
[1732336080000,0.07987312,98189.0,98188.0,0.03859289]
[1732336080242,0.07987312,98189.0,98188.0,0.03378102]
[1732336080637,0.07987312,98189.0,98188.0,0.03864965]
[1732336080868,0.12527312,98189.0,98188.0,0.03864965]
[1732336081084,0.12727312,98189.0,98188.0,0.00572933]
[1732336081532,0.12727312,98189.0,98188.0,0.0008607]
[1732336082258,0.12527312,98189.0,98188.0,0.0008607]
[1732336082496,0.14827312,98189.0,98188.0,0.0008607]
[1732336082734,0.14827312,98189.0,98188.0,0.03403729]
[1732336083197,0.14827312,98189.0,98188.0,0.03893476]
[1732336083434,0.15027312,98189.0,98188.0,0.03893476]
[1732336084659,0.15027312,98189.0,98188.0,0.00575817]
[1732336084885,0.15027312,98189.0,98188.0,0.0008607]
[1732336086258,0.35027312,98189.0,98188.0,0.0008607]
[1732336086478,0.349,98189.0,98188.0,0.0008607]
[1732336087615,0.149,98189.0,98188.0,0.0008607]
[1732336087844,0.15027335,98189.0,98188.0,0.0008607]
[1732336094949,1.15027335,98189.0,98188.0,0.0008607]
[1732336095162,1.149,98189.0,98188.0,0.0008607]
[1732336099674,1.1498607,98189.0,98188.0,0.0008607]
[1732336101643,1.1478607,98189.0,98188.0,0.0008607]
[1732336101868,1.1498607,98189.0,98188.0,0.0008607]
[1732336103832,1.1478607,98189.0,98188.0,0.0008607]
[1732336104502,1.1498607,98189.0,98188.0,0.0008607]
[1732336105242,1.3498607,98189.0,98188.0,0.0008607]
[1732336105893,1.4498607,98189.0,98188.0,0.0008607]
[1732336109324,1.2498607,98189.0,98188.0,0.0008607]
[1732336110236,1.4498607,98189.0,98188.0,0.0008607]
[1732336111415,1.2498607,98189.0,98188.0,0.0008607]
[1732336113406,1.4498607,98189.0,98188.0,0.0008607]
[1732336115418,1.2498607,98189.0,98188.0,0.0008607]
[1732336116287,1.4498607,98189.0,98188.0,0.0008607]
[1732336116929,1.4478607,98189.0,98188.0,0.0008607]
[1732336117411,1.4498607,98189.0,98188.0,0.0008607]
[1732336118355,1.2498607,98189.0,98188.0,0.0008607]
[1732336120466,1.4498607,98189.0,98188.0,0.0008607]
[1732336121352,1.2498607,98189.0,98188.0,0.0008607]
[1732336123554,1.2478607,98189.0,98188.0,0.0008607]
[1732336123806,1.2498607,98189.0,98188.0,0.0008607]
[1732336126253,1.2498607,98189.0,98188.0,0.0125113]
[1732336127673,1.2478607,98189.0,98188.0,0.0125113]
[1732336127883,1.2498607,98189.0,98188.0,0.0125113]
[1732336129686,1.2478607,98189.0,98188.0,0.0125113]
[1732336129904,1.2498607,98189.0,98188.0,0.0125113]
[1732336130851,1.1268607,98189.0,98188.0,0.0125113]
[1732336132409,1.2498607,98189.0,98188.0,0.0125113]
[1732336133259,1.1498607,98189.0,98188.0,0.0125113]
[1732336134188,1.0028607,98189.0,98188.0,0.0125113]
[1732336137767,1.0008607,98189.0,98188.0,0.0125113]
[1732336140175,1.0008607,98189.0,98188.0,0.01607164]
[1732336143049,1.0008607,98189.0,98175.0,0.04054492]
[1732336143248,0.00127315,98188.0,98147.0,0.16917858]
[1732336143470,0.00127315,98188.0,98148.0,0.00086]
[1732336143686,0.00127315,98188.0,98157.0,0.04057]
[1732336144513,0.00127315,98188.0,98152.0,0.24982765]
[1732336144938,0.00127315,98188.0,98158.0,0.04057]
[1732336145946,0.00127315,98188.0,98162.0,0.001721]
[1732336152856,0.00127315,98188.0,98163.0,0.03181626]
[1732336154839,0.0453,98187.0,98163.0,0.03181626]
[1732336155060,0.00127322,98186.0,98163.0,0.03181626]
[1732336155293,0.0818,98185.0,98163.0,0.03181626]
[1732336155524,0.00127322,98184.0,98163.0,0.03181626]
[1732336156215,0.1271,98180.0,98162.0,0.04356963]
[1732336156451,0.002,98171.0,98162.0,0.04356963]
[1732336156693,0.1242,98169.0,98162.0,0.04356963]
[1732336156912,0.002,98163.0,98162.0,0.001721]
[1732336157141,0.1262,98163.0,98162.0,0.001721]
[1732336157352,0.1242,98163.0,98162.0,0.001721]
[1732336162894,0.1242,98163.0,98162.0,0.03353726]
[1732336168918,0.1242,98163.0,98162.0,0.07392437]
[1732336169417,0.1242,98163.0,98162.0,0.03353726]
[1732336170525,0.0008605,98168.0,98162.0,0.03353726]
[1732336170728,0.0008605,98168.0,98162.0,0.001721]
[1732336171108,0.00127343,98167.0,98162.0,0.001721]
[1732336177961,0.00127343,98167.0,98162.0,0.04289062]
[1732336178593,0.1257,98166.0,98162.0,0.04289062]
[1732336178814,0.00127342,98165.0,98162.0,0.04289062]
[1732336179498,0.00127342,98165.0,98162.0,0.001721]
[1732336180197,0.1257,98164.0,98162.0,0.001721]
[1732336180379,0.12697342,98164.0,98162.0,0.001721]
[1732336186442,0.1257,98164.0,98162.0,0.001721]
[1732336186996,0.0008605,98168.0,98162.0,0.001721]
[1732336187515,0.0008605,98168.0,98163.0,0.02910322]
[1732336187954,0.0008605,98168.0,98164.0,0.03175587]
[1732336197276,0.0835605,98168.0,98164.0,0.03175587]
[1732336199752,0.06064033,98168.0,98164.0,0.03175587]
[1732336200842,0.06064033,98168.0,98162.0,0.001721]
[1732336202406,0.06064033,98168.0,98163.0,0.02507425]
[1732336202865,0.06064033,98168.0,98164.0,0.03175587]
[1732336203085,0.0008605,98168.0,98164.0,0.03175587]
[1732336207328,0.0008605,98168.0,98165.0,0.022]
[1732336208004,0.0476,98195.0,98167.0,0.022]
[1732336209392,0.0476,98195.0,98175.0,0.5]
[1732336211501,0.0476,98195.0,98175.0,0.54213581]
[1732336212397,0.0476,98195.0,98176.0,0.02991103]
[1732336217576,0.0476,98195.0,98177.0,0.00456861]
[1732336218046,0.0476,98195.0,98181.0,0.30648556]
[1732336218489,0.0476,98195.0,98182.0,0.00456375]
[1732336219857,0.0476,98195.0,98180.0,0.30648556]
[1732336220062,0.0476,98195.0,98183.0,0.00456334]
[1732336220272,0.0476,98195.0,98180.0,0.30648556]
[1732336220521,0.0476,98195.0,98184.0,0.00456128]
[1732336220741,0.0476,98195.0,98180.0,0.30648556]
[1732336220943,0.0476,98195.0,98181.0,0.00456176]
[1732336221177,0.0476,98195.0,98180.0,0.30648556]
[1732336221389,0.076,98187.0,98179.0,0.30648556]
[1732336221595,0.04937314,98186.0,98181.0,0.00456176]
[1732336221827,0.04937314,98186.0,98175.0,0.54213581]
[1732336222399,0.076,98185.0,98175.0,0.04213581]
[1732336222599,0.076,98183.0,98175.0,0.04213581]
[1732336222950,0.0481,98182.0,98169.0,0.30648556]
[1732336223403,0.0481,98182.0,98169.0,0.34802527]
[1732336223820,0.0481,98182.0,98170.0,0.30648556]
[1732336224008,0.0481,98182.0,98169.0,0.34802527]
[1732336224229,0.0481,98182.0,98170.0,0.30648556]
[1732336224676,0.0481,98182.0,98169.0,0.30648556]
[1732336224677,0.076,98181.0,98169.0,0.30648556]
[1732336224906,0.0481,98180.0,98169.0,0.30648556]
[1732336225116,0.076,98179.0,98169.0,0.30648556]
[1732336225339,0.076,98179.0,98170.0,0.30648556]
[1732336226271,0.0481,98178.0,98170.0,0.30648556]
[1732336228470,0.0017214,98202.0,98170.0,0.30648556]
[1732336228471,0.0481,98176.0,98170.0,0.30648556]
[1732336228681,0.07727329,98175.0,98170.0,0.30648556]
[1732336228893,0.076,98173.0,98168.0,0.0017208]
[1732336229103,0.04937338,98172.0,98168.0,0.0017208]
[1732336229329,0.1241,98171.0,98168.0,0.0017208]
[1732336229555,0.0012734,98170.0,98168.0,0.0017208]
[1732336229767,0.1241,98169.0,98168.0,0.0017208]
[1732336232588,0.12390874,98169.0,98168.0,0.0017208]
[1732336240238,0.0499,98168.0,98158.0,0.04057]
[1732336240451,0.0499,98166.0,98158.0,0.04057]
[1732336240637,0.05117338,98165.0,98158.0,0.04057]
[1732336240870,0.0773,98164.0,98158.0,0.04057]
[1732336241121,0.0499,98163.0,98158.0,0.04057]
[1732336245731,0.0507604,98170.0,98158.0,0.04057]
[1732336246192,0.0008604,98170.0,98158.0,0.04057]
[1732336246620,0.0008604,98170.0,98159.0,0.022]
[1732336250455,0.0008604,98170.0,98161.0,0.5]
[1732336253303,0.0008604,98170.0,98158.0,0.08367694]
[1732336254354,0.0008604,98170.0,98161.0,0.5]
[1732336257435,0.0008604,98170.0,98162.0,0.05196804]
[1732336264721,0.0008604,98170.0,98162.0,0.54492475]
[1732336264931,0.0008604,98170.0,98166.0,0.49295671]
[1732336265137,0.0008604,98170.0,98167.0,0.49295671]
[1732336265580,0.0008604,98170.0,98166.0,0.49295671]
[1732336265815,0.0008604,98170.0,98169.0,0.1]
[1732336266024,0.0008604,98170.0,98169.0,0.2]
[1732336266234,0.0008604,98170.0,98169.0,0.1]
[1732336267142,0.0008604,98170.0,98169.0,0.2]
[1732336267354,0.0008604,98170.0,98169.0,0.750086]
[1732336268020,1.0008607,98189.0,98177.0,0.1]
[1732336268228,1.0008607,98189.0,98175.0,0.49230283]
[1732336268446,1.0008607,98189.0,98178.0,0.023]
[1732336268669,1.0008607,98189.0,98178.0,0.123]
[1732336269359,1.0008607,98189.0,98186.0,0.5]
[1732336271058,1.0008607,98189.0,98186.0,0.54110771]
[1732336272425,1.0008607,98189.0,98187.0,0.02882037]
[1732336275223,1.0008607,98189.0,98188.0,0.5]
[1732336277956,1.0008607,98189.0,98188.0,0.51428632]
[1732336279560,1.0473607,98189.0,98188.0,0.51428632]
[1732336280144,1.1282607,98189.0,98188.0,0.51428632]
[1732336282474,1.1282607,98189.0,98188.0,0.54232807]
[1732336282880,1.0473607,98189.0,98188.0,0.54232807]
[1732336283125,0.0809,98197.0,98189.0,0.05117776]
[1732336284338,0.0809,98197.0,98191.0,0.5]
[1732336284751,0.0809,98197.0,98192.0,0.02817776]
[1732336286301,0.0826202,98197.0,98192.0,0.02817776]
[1732336287685,0.0017202,98197.0,98192.0,0.02817776]
[1732336288302,0.0017202,98197.0,98196.0,0.5]
[1732336288733,0.0017202,98197.0,98196.0,0.53176101]
[1732336289797,0.1291202,98197.0,98196.0,0.53318993]
[1732336294376,0.1291202,98197.0,98196.0,0.0739236]
[1732336300908,0.0826202,98197.0,98196.0,0.0739236]
[1732336301800,0.0017202,98197.0,98196.0,0.0739236]
[1732336302473,0.0017202,98197.0,98196.0,0.10499179]
[1732336303407,0.0017202,98197.0,98196.0,0.60499179]
[1732336304725,0.1301202,98197.0,98196.0,0.60499179]
[1732336305597,0.1301202,98197.0,98196.0,0.10499179]
[1732336305807,0.0803202,98197.0,98196.0,0.10499179]
[1732336306017,0.0017202,98197.0,98196.0,0.10499179]
[1732336307379,0.0017202,98197.0,98196.0,0.60499179]
[1732336311828,0.0017202,98197.0,98196.0,0.37381389]
[1732336312036,0.0017202,98197.0,98196.0,0.4149068]
[1732336313126,0.0017202,98197.0,98196.0,0.42627268]
[1732336313360,0.0017202,98197.0,98196.0,0.55245879]
[1732336313582,0.0017202,98197.0,98196.0,0.85959045]
[1732336313833,0.0017202,98197.0,98196.0,0.55245879]
[1732336315154,0.0017202,98197.0,98196.0,0.65245879]
[1732336316858,0.00164446,98197.0,98196.0,0.65245879]
[1732336317060,0.00015148,98197.0,98196.0,0.65245879]
[1732336317281,0.07482635,98209.0,98205.0,0.1]
[1732336317708,0.07482635,98209.0,98206.0,0.01136588]
[1732336319400,0.07482635,98209.0,98208.0,0.5]
[1732336319637,0.07482635,98209.0,98208.0,0.50142448]
[1732336320262,0.0043968,98229.0,98209.0,0.1]
[1732336320263,0.0753,98227.0,98209.0,0.1]
[1732336320483,0.0753,98227.0,98210.0,0.00142448]
[1732336321794,0.0753,98225.0,98219.0,0.30701696]
[1732336322218,0.0753,98225.0,98220.0,0.00142448]
[1732336322701,0.1237,98225.0,98222.0,0.30692031]
[1732336322930,0.1237,98225.0,98221.0,0.30692031]
[1732336323166,0.1237,98225.0,98223.0,0.00142448]
[1732336327577,0.1237,98224.0,98223.0,0.00142448]
[1732336332305,0.1237,98224.0,98223.0,0.30805909]
[1732336332735,0.1237,98224.0,98223.0,0.00142448]
[1732336334408,0.0043968,98229.0,98223.0,0.00142448]
[1732336334623,0.0796968,98229.0,98223.0,0.00142448]
[1732336334769,0.0017198,98227.0,98223.0,0.00142448]
[1732336335184,0.0017198,98227.0,98224.0,0.1]
[1732336335385,0.0043968,98229.0,98227.0,0.0017198]
[1732336335594,0.0043968,98229.0,98225.0,0.01941163]
[1732336335796,0.0753,98236.0,98225.0,0.01941163]
[1732336336171,0.0753,98236.0,98231.0,0.30647207]
[1732336336378,0.0753,98236.0,98232.0,0.02659838]
[1732336336830,0.0495,98233.0,98226.0,0.5]
[1732336337032,0.0812,98232.0,98227.0,0.01329919]
[1732336337227,0.0812,98232.0,98230.0,0.30641402]
[1732336337446,0.0812,98232.0,98231.0,0.02659838]
[1732336338317,0.07703158,98232.0,98231.0,0.02659838]
[1732336341239,0.0017202,98254.0,98225.0,0.30636449]
[1732336341442,0.0812,98230.0,98226.0,0.30636449]
[1732336341665,0.0012724,98253.0,98226.0,0.30636449]
[1732336341666,0.0495,98231.0,98226.0,0.02941896]
[1732336341879,0.0495,98229.0,98226.0,0.02941896]
[1732336342098,0.0495,98227.0,98223.0,0.04101201]
[1732336342318,0.0812,98226.0,98223.0,0.0005]
[1732336342524,0.1307,98233.0,98223.0,0.0005]
[1732336342752,0.0812,98230.0,98224.0,0.02834972]
[1732336342960,0.1307,98229.0,98224.0,0.02834972]
[1732336343162,0.0495,98232.0,98224.0,0.02834972]
[1732336343369,0.1219,98231.0,98224.0,0.02834972]
[1732336343581,0.1219,98232.0,98224.0,0.02834972]
[1732336343801,0.1219,98230.0,98224.0,0.02834972]
[1732336344009,0.0458,98229.0,98224.0,0.02834972]
[1732336344236,0.0458,98227.0,98224.0,0.02834972]
[1732336344449,0.0761,98226.0,98224.0,0.02834972]
[1732336344668,0.1219,98225.0,98224.0,0.02834972]
[1732336347254,0.1219,98225.0,98224.0,0.02920932]
[1732336353112,0.1219,98225.0,98224.0,0.0008596]
[1732336353573,0.1219,98225.0,98224.0,0.30732708]
[1732336354279,0.1219,98225.0,98224.0,0.0008596]
[1732336355595,0.1219,98225.0,98224.0,0.30732708]
[1732336356248,0.1219,98225.0,98224.0,0.0008596]
[1732336356476,0.1219,98225.0,98224.0,0.30773716]
[1732336357488,0.1219,98225.0,98224.0,0.0008596]
[1732336358089,0.1219,98225.0,98224.0,0.02681094]
[1732336363474,0.00299273,98254.0,98241.0,0.1]
[1732336363768,0.00299273,98254.0,98242.0,0.1]
[1732336363769,0.0017202,98254.0,98242.0,0.1]
[1732336363869,0.0017202,98254.0,98247.0,0.30695929]
[1732336364070,0.0017202,98254.0,98248.0,0.00955793]
[1732336364299,0.0017202,98254.0,98248.0,0.04049576]
[1732336368662,0.0017202,98254.0,98248.0,0.0815065]
[1732336368902,0.0017202,98254.0,98248.0,0.04049576]
[1732336372516,0.0017202,98254.0,98248.0,0.08230883]
[1732336372980,0.0017202,98254.0,98248.0,0.04049576]
[1732336373410,0.0017202,98254.0,98248.0,0.34690403]
[1732336375687,0.0017202,98254.0,98248.0,0.34755461]
[1732336375926,0.0017202,98254.0,98248.0,0.04114634]
[1732336376352,0.0017202,98254.0,98245.0,0.30640827]
[1732336376994,0.0017202,98254.0,98245.0,0.30628993]
[1732336377215,0.0017202,98254.0,98247.0,0.30628993]
[1732336377435,0.0017202,98254.0,98246.0,0.30628993]
[1732336379381,0.0012722,98253.0,98245.0,0.30628993]
[1732336379588,0.0754,98252.0,98244.0,0.30628993]
[1732336379796,0.00127228,98251.0,98243.0,0.30628993]
[1732336380435,0.00127228,98251.0,98242.0,0.30628993]
[1732336380669,0.00127228,98251.0,98243.0,0.30628993]
[1732336381124,0.00127228,98251.0,98242.0,0.30628993]
[1732336382872,0.00127228,98251.0,98234.0,0.04166867]
[1732336382873,0.00127228,98251.0,98243.0,0.30628993]
[1732336383111,0.0474,98249.0,98240.0,0.30628993]
[1732336383329,0.0766724,98248.0,98240.0,0.30628993]
[1732336383554,0.0766724,98248.0,98241.0,0.30628993]
[1732336383786,0.0766724,98248.0,98238.0,0.30628993]
[1732336384681,0.0766724,98248.0,98239.0,0.30628993]
[1732336384889,0.0766724,98248.0,98234.0,0.3479586]